Cogmind - Beta 16 @@@ ROGUE MODE // 2025.11.19 @ 16:43:17 Player: Lazz Result: Destroyed by G-47 Trooper with Particle Gun Performance ------------- Evolutions (3) 1500 Regions Visited (5) 1000 Robots Destroyed (44) 220 Value Destroyed (1216) 1216 Prototype IDs (4) 80 Alien Tech Used (0) 0 Bonus (0) 0 TOTAL SCORE: 4016 Bonus ------- None Cogmind --------- Core Integrity 0/700 Matter 19/300 Energy 44/100 System Corruption 0% Temperature Cool (9) Movement Walking (180) Ox1 Location -7/Factory Parts ------- > --- POWER (1) -------- (None) > --- PROPULSION (3) --- VSS Leg > --- UTILITY (7) ------ Large Storage Unit > --- WEAPON (2) ------- (None) > --- INVENTORY (15) --- Light Nuclear Core VSS Leg Huge Storage Unit Minigun Minigun Rocket Launcher Mini Grenade Launcher Peak State ------------ > --- POWER ------------ Improved Ion Engine > --- PROPULSION ------- Light Treads Improved Treads Improved Treads > --- UTILITY ---------- Huge Storage Unit Experimental Sensor Array Propulsion Shielding Propulsion Shielding Utility Shielding > --- WEAPON ----------- Particle Cannon Minigun > --- INVENTORY -------- Light Ion Engine Light Deuterium Engine Aluminum Leg Aluminum Leg Small Storage Unit Large Storage Unit Light Armor Plating Particle Gun Light Assault Rifle Minigun Minigun Rocket Launcher [Rating: 27] Favorites ----------- Power Improved Ion Engine Engine Improved Ion Engine Propulsion Light Treads Treads Light Treads Leg Aluminum Leg Utility Small Storage Unit Device Experimental Sensor Array Storage Small Storage Unit Protection Utility Shielding Weapon Light Assault Rifle Energy Gun Medium Laser Energy Cannon Particle Cannon Ballistic Gun Light Assault Rifle Ballistic Cannon Flak Cannon Launcher Mini Grenade Launcher Build | -11 -10 -9 -9 -8 -7 ------- Run | Yrd Mat Mat Min Mat Fac Slots Evolved 6 | . . 2 . 2 2 Power . | . . . . . . Propulsion 1 | . . 1 . . . Utility 5 | . . 1 . 2 2 Weapon . | . . . . . . Parts Attached 40 | 8 1 7 5 13 6 Power 4 | 1 . 1 . 1 1 Engine 4 | 1 . 1 . 1 1 Core . | . . . . . . Reactor . | . . . . . . Propulsion 11 | 3 . 3 . 3 2 Treads 5 | 1 . 3 . 1 . Leg 6 | 2 . . . 2 2 Wheel . | . . . . . . Hover . | . . . . . . Flight . | . . . . . . Utility 11 | 2 . 2 2 4 1 Device 2 | 1 . . 1 . . Storage 3 | 1 . . . 2 . Processor . | . . . . . . Hackware . | . . . . . . Protection 6 | . . 2 1 2 1 Artifact . | . . . . . . Weapon 14 | 2 1 1 3 5 2 Energy Gun 3 | 1 1 . . 1 . Energy Cannon 1 | . . . 1 . . Ballistic Gun 6 | 1 . . 1 3 1 Ballistic Cannon 1 | . . . . 1 . Launcher 3 | . . 1 1 . 1 Special Weapon . | . . . . . . Impact Weapon . | . . . . . . Slashing Weapon . | . . . . . . Piercing Weapon . | . . . . . . Special Melee Weapon . | . . . . . . Unidentified Prototypes 2 | . . . 1 1 . Parts Lost 28 | . . 1 7 9 11 Power 2 | . . . . 1 1 Propulsion 10 | . . . 2 5 3 Utility 8 | . . . 2 3 3 Weapon 8 | . . 1 3 . 4 Highest Loss Streak 5 | . . 1 4 4 5 To Critical Strikes . | . . . . . . Average Backups 7 | 3 6 5 7 10 6 Power 1 | . . . 1 1 1 Propulsion 1 | 1 2 2 2 1 . Utility 1 | . 2 2 3 1 1 Weapon 2 | . 1 1 . 5 4 Tool/Special . | . . . . . . Unused Backups 6 | . 1 . . 2 3 Power 1 | . 1 . . . . Propulsion 1 | . . . . . 1 Utility 1 | . . . . 1 . Weapon 3 | . . . . 1 2 Tool/Special . | . . . . . . Average Slot Usage (%) 78 | . 100 99 86 83 36 Engine 8 | . 14 11 11 8 3 Treads 15 | . . 32 28 10 2 Leg 6 | . 28 . . 13 3 Device 8 | . 14 11 9 9 2 Storage 9 | . 14 11 11 9 7 Protection 9 | . . 10 7 17 5 Energy Gun 5 | . 20 11 6 . . Energy Cannon 2 | . . . 3 6 . Ballistic Gun 8 | . 7 8 7 8 7 Peak Build Rating 27 | 7 7 11 21 27 24 Average Rating 14 | 5 7 9 14 23 12 On Entrance 11 | . 7 7 11 21 20 Avg Prop Armor Cover (%) 8 | 8 . . . 11 7 Naked Turns . | . . . . . . Heaviest Build 98 | 12 13 20 22 98 40 Greatest Support 66 | 20 20 63 63 66 24 Greatest Overweight (x) 13 | 1 . . . 8 13 Average Overweight (x) 1 | . . . . 1 3 Largest Inventory Capacity 25 | 8 8 8 8 25 15 Average Capacity 13 | 7 8 8 8 22 15 Most Carried 15 | 4 8 8 8 15 9 Average Carried 7 | 3 6 5 7 10 6 Final Capacity 25 | 8 8 8 8 25 15 Final Carried 9 | 4 8 8 8 9 7 Class Distribution -------------------- 100% | Mutant Dominant Class ---------------- Mutant | -10/Materials Mutant | -9/Materials Mutant | -9/Mines Mutant | -8/Materials Mutant | -7/Factory Resources | -11 -10 -9 -9 -8 -7 ----------- Run | Yrd Mat Mat Min Mat Fac Matter Collected 680 | 209 81 95 93 124 78 Remotely . | . . . . . . Salvage Created 1155 | 106 183 209 170 270 217 Parts 88 | 10 11 14 18 16 19 Haulers Intercepted . | . . . . . . Recyclers Shooed . | . . . . . . Parts Field Recycled . | . . . . . . Retrieved Matter . | . . . . . . Parts Self-Destructed . | . . . . . . Prevented . | . . . . . . Parts Restored . | . . . . . . Kills | -11 -10 -9 -9 -8 -7 ------- Run | Yrd Mat Mat Min Mat Fac Combat Hostiles Destroyed 32 | . 4 6 11 5 6 Melee 1 | . . . 1 . . Guns 16 | . 4 6 4 2 . Cannons 4 | . . . . 3 1 AOE 11 | . . . 6 . 5 Classes Destroyed 10 | 2 1 2 1 2 2 Worker 4 | . . . . . 4 Builder 2 | . . . . 1 1 Tunneler 3 | 3 . . . . . Recycler 2 | 1 . . . . 1 Watcher 1 | . . . . . 1 Swarmer 13 | . . 3 7 . 3 Grunt 13 | . 4 1 3 3 2 Sentry 4 | . . 2 . 1 1 Demolisher 1 | . . . 1 . . Hunter 1 | . . . . 1 . Best Kill Streak 9 | 3 2 3 4 2 9 Combat Bots Only 4 | . 2 3 4 2 3 Max Kills in Single Turn 3 | 1 1 2 2 1 3 Gunslinging 1 | . . 1 . . . Exploded 2 | . . . 2 . 2 Melee 1 | . . . 1 . . Uniques/NPCs Destroyed . | . . . . . . Combat | -11 -10 -9 -9 -8 -7 -------- Run | Yrd Mat Mat Min Mat Fac Hostile Shots Fired 401 | . 21 20 55 73 232 Missed 106 | . 9 4 11 14 68 Hits 295 | . 12 16 44 59 164 Projectile 295 | . 12 16 44 59 164 AOE 14 | . . . 14 . . Critical Strikes 8 | . 1 1 . 2 4 Actively Blocked 2 | . . . . 2 . Damage Taken 4093 | . 160 207 847 917 1962 Core 1004 | . 12 12 149 122 709 Absorbed by Shields . | . . . . . . Redirected to Shielding 135 | . . . 8 87 40 Core Remaining (%) 82 | 100 95 . 59 77 . Volleys Fired 112 | 11 13 16 27 22 23 Largest 2 | 2 2 2 2 2 2 Hottest 105 | 70 90 90 101 105 67 Shots Fired 193 | 22 26 30 36 36 43 Gun 154 | 22 26 30 30 15 31 Cannon 29 | . . . 2 21 6 Launcher 10 | . . . 4 . 6 Special . | . . . . . . Kinetic 89 | 11 2 8 13 18 37 Thermal 77 | 11 13 16 19 18 . Explosive 10 | . . . 4 . 6 Electromagnetic 17 | . 11 6 . . . Robot Hit Streak 13 | 12 4 13 4 11 7 Robot Miss Streak 6 | 1 4 1 4 4 6 Penetration Max . | . . . . . . Secondary Targets 2 | . . 1 1 . . Max Gunslinging Chain 1 | . . 1 1 . . Shots Hit Robots 132 | 17 16 27 19 26 27 Core Hits 77 | 8 11 9 13 14 22 Critical Kills . | . . . . . . Critical Parts Destroyed . | . . . . . . Critical Strikes 5 | 2 3 . . . . Burn 4 | 2 2 . . . . Corrupt 1 | . 1 . . . . Melee Attacks . | . . . . . . Impact . | . . . . . . Slashing . | . . . . . . Piercing . | . . . . . . Sneak Attacks . | . . . . . . Combat Hostiles . | . . . . . . Follow-up Attacks . | . . . . . . Damage Inflicted 3096 | 175 230 312 503 503 1373 Guns 1405 | 175 226 298 169 181 356 Cannons 402 | . . . 21 305 76 Explosions 1240 | . . . 304 . 936 Melee . | . . . . . . Ramming 49 | . 4 14 9 17 5 Kinetic 855 | 76 7 56 44 240 432 Thermal 936 | 99 111 188 146 246 146 Explosive 1094 | . . . 304 . 790 Electromagnetic 162 | . 108 54 . . . Impact . | . . . . . . Slashing . | . . . . . . Piercing . | . . . . . . Highest Corruption . | . . . . . . Average Corruption . | . . . . . . Corruption Purged . | . . . . . . Corruption Blocked . | . . . . . . Overload Shots . | . . . . . . Overflow Damage 106 | . . . . . 106 Projectiles . | . . . . . . Explosions 106 | . . . . . 106 Melee . | . . . . . . Knockbacks 2 | . . . . . 2 Impact . | . . . . . . Kinetic 2 | . . . . . 2 Secondary . | . . . . . . Self-Inflicted Damage 40 | . . . 15 . 25 Shots 3 | . . . 2 . 1 Rammed 7 | . . 2 3 2 . Targets Rammed 12 | . 1 2 4 3 2 Kicked 4 | . 1 . . 1 2 Crushed 1 | . . . 1 . . Highest Temperature 264 | 110 264 194 75 118 24 Average Temperature 53 | 46 102 60 34 40 8 Received Heat Transfer 1281 | . 105 87 24 360 705 Effects 1 | . 1 . . . . Energy Bleed 1 | . 1 . . . . Siege Activations . | . . . . . . Martial Activations . | . . . . . . Shielding Activations . | . . . . . . Robots Disrupted . | . . . . . . Combat Hostiles . | . . . . . . Robots Corrupted . | . . . . . . Combat Hostiles . | . . . . . . Parts Fried . | . . . . . . Impact Corruptions . | . . . . . . Robots Melted . | . . . . . . Combat Hostiles . | . . . . . . Parts Melted 4 | . 2 1 1 . . Heat Transferred 2531 | 444 481 555 407 444 200 Parts Sabotaged . | . . . . . . Parts Stolen . | . . . . . . Parts Stripped . | . . . . . . Power Chain Reactions . | . . . . . . Alert | -11 -10 -9 -9 -8 -7 ------- Run | Yrd Mat Mat Min Mat Fac Maximum Alert Level 1 | . . . . . 1 Low Security (%) 95 | 100 100 100 100 100 80 Level 1 4 | . . . . . 19 Level 2 . | . . . . . . Level 3 . | . . . . . . Level 4 . | . . . . . . Level 5 . | . . . . . . High Security . | . . . . . . Max Security . | . . . . . . Peak Influence 251 | 15 51 80 109 39 251 Initial 39 | . . 21 . 39 . Average 29 | 2 11 21 26 10 74 Influence Increases 1126 | 20 105 160 317 178 346 Destroy 0b10 Robot/C 640 | . 80 120 220 100 120 Destroy 0b10 Robot/NC 60 | 20 . . . 5 35 Destroy Leader 142 | . 20 40 30 40 12 Successful Hack 21 | . 4 . . 17 . Disable Machine 180 | . . . 30 . 150 Destroy Structure 53 | . 1 . 22 1 29 Lose Combat Pursuer 30 | . . . 15 15 . Influence Decreases 975 | 20 54 211 216 279 195 Entered New Map 92 | . . 30 . 62 . Time Decay 734 | 20 54 171 176 168 145 Lost Part 140 | . . 10 40 40 50 Purge Threat 9 | . . . . 9 . Squads Dispatched 6 | . 2 1 . 3 . Investigation 4 | . 1 1 . 2 . Extermination . | . . . . . . Reinforcement 2 | . 1 . . 1 . Assault . | . . . . . . Garrison . | . . . . . . Intercept . | . . . . . . Searches Triggered . | . . . . . . Construction Impeded . | . . . . . . Haulers Reinforced . | . . . . . . Active Scanning Responses . | . . . . . . Cargo Convoy Interrupts . | . . . . . . Stealth | -11 -10 -9 -9 -8 -7 --------- Run | Yrd Mat Mat Min Mat Fac Distress Signals 4 | . 1 1 1 1 . Communications Jammed . | . . . . . . Distress Signals . | . . . . . . Times Spotted 56 | . 8 6 14 16 12 Peak Tracking Total 5 | . 4 2 4 5 4 Tactical Retreats 2 | . . . 1 1 . Traps | -11 -10 -9 -9 -8 -7 ------- Run | Yrd Mat Mat Min Mat Fac Traps Triggered 4 | . 1 1 . 2 . Indirectly . | . . . . . . Trap Hack Attempts . | . . . . . . Triggered . | . . . . . . Disarmed . | . . . . . . Reprogrammed . | . . . . . . Reused . | . . . . . . Traps Extracted . | . . . . . . Installed . | . . . . . . Triggered . | . . . . . . Machines | -11 -10 -9 -9 -8 -7 ---------- Run | Yrd Mat Mat Min Mat Fac Machines Disabled 12 | . . . 2 . 10 Max in Single Turn 10 | . . . 2 . 10 Machines Repaired . | . . . . . . Machines Dismantled . | . . . . . . Machines Sabotaged . | . . . . . . Overloaded Fab Kills . | . . . . . . Hacking | -11 -10 -9 -9 -8 -7 --------- Run | Yrd Mat Mat Min Mat Fac Machines Accessed 7 | . 1 1 . 5 . Terminals 5 | . 1 1 . 3 . Fabricators . | . . . . . . Repair Stations . | . . . . . . Recycling Units . | . . . . . . Scanalyzers 1 | . . . . 1 . Garrison Access 1 | . . . . 1 . Total Hacks 17 | . 4 1 . 12 . Successful 5 | . 1 . . 4 . Failed 12 | . 3 1 . 8 . Catastrophic 2 | . 1 1 . . . Database Lockouts . | . . . . . . Manual 3 | . 3 . . . . Terminals 11 | . 4 1 . 6 . Fabricators . | . . . . . . Repair Stations . | . . . . . . Recycling Units . | . . . . . . Scanalyzers 3 | . . . . 3 . Garrison Access 3 | . . . . 3 . Terminal Hacks 4 | . 1 . . 3 . Prototype ID Bank 1 | . . . . 1 . Unreport Threat 1 | . . . . 1 . Locate Traps 1 | . 1 . . . . Zone Layout 1 | . . . . 1 . Fabricator Hacks . | . . . . . . Repair Station Hacks . | . . . . . . Recycling Unit Hacks . | . . . . . . Scanalyzer 1 | . . . . 1 . Retrieve Study 1 | . . . . 1 . Garrison Access Hacks . | . . . . . . Unauthorized Hacks . | . . . . . . Terminals . | . . . . . . Fabricators . | . . . . . . Repair Stations . | . . . . . . Recycling Units . | . . . . . . Scanalyzers . | . . . . . . Garrison Access . | . . . . . . Data Cores Recovered . | . . . . . . Used . | . . . . . . Hacking Detections 6 | . 1 1 . 4 . Full Trace Events 1 | . . . . 1 . Feedback Events . | . . . . . . Feedback Blocked . | . . . . . . Robot Schematics Acquired . | . . . . . . Robots Built . | . . . . . . Authchips . | . . . . . . Time . | . . . . . . Total Robot Build Rating . | . . . . . . Part Schematics Acquired . | . . . . . . Parts Built . | . . . . . . Authchips . | . . . . . . Time . | . . . . . . Total Part Build Rating . | . . . . . . Part Studies Acquired 1 | . . . . 1 . Parts Repaired . | . . . . . . Time . | . . . . . . Parts Recycled . | . . . . . . Recycled Matter . | . . . . . . Retrieved Matter . | . . . . . . Retrieved Components . | . . . . . . Parts Scanalyzed . | . . . . . . Part Schematics Acquired . | . . . . . . Parts Damaged . | . . . . . . Bothacking | -11 -10 -9 -9 -8 -7 ------------ Run | Yrd Mat Mat Min Mat Fac Used RIF Installer . | . . . . . . Robots Hacked . | . . . . . . Non-combat . | . . . . . . Combat . | . . . . . . Robot Hacks Applied . | . . . . . . Relay Couplers Released . | . . . . . . Fabnet Peak Effective % . | . . . . . . Robots Rewired . | . . . . . . Allies Hacked . | . . . . . . Hacks Repelled . | . . . . . . Allies | -11 -10 -9 -9 -8 -7 -------- Run | Yrd Mat Mat Min Mat Fac Total Allies . | . . . . . . Largest Group . | . . . . . . Highest-Rated Group . | . . . . . . Highest-Rated Ally . | . . . . . . Total Orders . | . . . . . . Ally Attacks . | . . . . . . Total Damage . | . . . . . . Kills . | . . . . . . Allies Corrupted . | . . . . . . Allies Melted . | . . . . . . Intel | -11 -10 -9 -9 -8 -7 ------- Run | Yrd Mat Mat Min Mat Fac Active Infowar (turns) 2203 | 11 235 536 522 728 171 Sensors 1195 | . . . 296 728 171 Seismic 1008 | 11 235 536 226 . . Robot Analysis Total . | . . . . . . Derelict Logs Recovered 1 | . . . 1 . . Drone Launches . | . . . . . . Drone Recoveries . | . . . . . . Exploration | -11 -10 -9 -9 -8 -7 ------------- Run | Yrd Mat Mat Min Mat Fac Turns Passed 2819 | 126 235 536 583 728 611 Spaces Moved 1087 | 49 151 186 294 240 167 Core 79 | 6 . . . . 73 Treads 680 | 4 . 186 294 135 61 Legs 328 | 39 151 . . 105 33 Wheels . | . . . . . . Hover . | . . . . . . Flight . | . . . . . . Fastest Speed 50 | 50 120 160 160 160 90 Average Speed 199 | 164 120 160 160 260 308 Slowest Speed 700 | 190 120 160 160 665 700 Overloaded Moves . | . . . . . . Propulsion Burnouts . | . . . . . . Robots Hopped . | . . . . . . Potential Cave-ins . | . . . . . . Cave-ins Triggered . | . . . . . . Exploration Rate (%) 24 | 4 36 20 56 22 8 Regions Visited 5 Branch Regions 1 Pre-discovered Areas . | . . . . . . Known Exits Taken . | . . . . . . Unknown Exits Taken 5 | 1 1 1 1 1 . Scrap Searched 2 | . . . 2 . . Spaces Dug . | . . . . . . Terrain Destroyed 67 | . . . 29 . 38 Melee . | . . . . . . Projectile . | . . . . . . AOE 67 | . . . 29 . 38 Terrain Rammed . | . . . . . . Walls Destroyed . | . . . . . . Machines Disabled . | . . . . . . Actions | -11 -10 -9 -9 -8 -7 --------- Run | Yrd Mat Mat Min Mat Fac Total 1546 | 72 179 394 368 310 223 Wait 249 | . 8 180 34 7 20 Move 1083 | 48 151 185 293 239 167 Hop . | . . . . . . Pick Up 21 | 4 5 . 2 9 1 Fast Attach 20 | 7 . . 4 5 4 Attach 21 | 1 . 5 2 9 4 Detach 9 | 1 . 2 . 5 1 Swap 12 | . 1 4 2 4 1 Drop 8 | . 1 . . 7 . Fire 112 | 11 13 16 27 22 23 Melee . | . . . . . . Ram . | . . . . . . Kick 3 | . . . . 1 2 Crush 8 | . . 2 4 2 . Escape Stasis . | . . . . . . Rewire . | . . . . . . Trap . | . . . . . . Miscellaneous . | . . . . . . Route ------- -11/Scrapyard -10/Materials -9/Materials -9/Mines -8/Materials -7/Factory (discovered 1 exit: Low) History --------- Turn | Location | Event 13 | -11/Scrapyard | Discovered new exit (range 16) 127 | -11/Scrapyard | Entered Materials 324 | -10/Materials | Build established: Mutant 355 | -10/Materials | Discovered new exit (range 7) 362 | -10/Materials | Entered another Materials area 362 | -9/Materials | Evolved 2 slots: Propulsion x1, Utility x1 871 | -9/Materials | Discovered new exit (range 16) 898 | -9/Materials | Entered Mines 1027 | -9/Mines | Assembled infested the area 1157 | -9/Mines | Lost 4 parts (2u2w) 1181 | -9/Mines | Found a damaged Exp. Sensor Array with a note attached 1185 | -9/Mines | Found Prototype Device 1185 | -9/Mines | Identified Exp. Sensor Array 1297 | -9/Mines | Lost 3 parts (2n1w) 1468 | -9/Mines | Discovered new exit (range 10) 1481 | -9/Mines | Entered Materials 1481 | -8/Materials | Evolved 2 slots: Utility x2 1861 | -8/Materials | Lost 4 parts (1n3u) 2183 | -8/Materials | Discovered new exit (range 10) 2209 | -8/Materials | Entered Factory 2209 | -7/Factory | Evolved 2 slots: Utility x2 2210 | -7/Factory | Identified exit to Lower Caves 2237 | -7/Factory | Lost 3 parts (1p2n) 2430 | -7/Factory | Lost 4 parts (2n1u1w) 2634 | -7/Factory | Lost 5 parts (1p2u2w) 2714 | -7/Factory | Core integrity fell below 50% 2775 | -7/Factory | Core integrity fell below 20% 2820 | -7/Factory | Destroyed by G-47 Trooper with Particle Gun Last Messages --------------- 02671_ U-05 Engineer lays Concrete. 02673_ K-01 Serf collects debris. 02673_ U-05 Engineer lays Concrete. 02674_ K-01 Serf collects debris. 02674_ U-05 Engineer builds a Wall. 02676_ U-05 Engineer lays Concrete. 02677_ K-01 Serf collects debris. 02677_ U-05 Engineer lays Concrete. 02677_ K-01 Serf collects debris. 02678_ U-05 Engineer lays Concrete. 02680_ K-01 Serf collects debris. 02681_ Autogun destroyed. 02684_ U-05 Engineer lays Concrete. 02691_ Critical hit (Burn: +37). 02776_ Acquired VSS Leg. 02807_ Kicked G-47 Trooper. 02808_ Kicked G-47 Trooper out of the way. 02812_ U-05 Engineer builds a Door. 02812_ VSS Leg destroyed. 02818_ Critical hit (Burn: +37). Map ----- +----------------------------------------------------+ | ???????????????????????????????????????????? | | ???????????????????????????????????????????? | | ???????????????????????????????????????????? | | ???????????????????????????????????????????? | | ???????????????????????????????????????????? | | ???????????????????????????????????????????? | | ???????????????????????????????????????????? | | ???????????????????????????????????????????? | | ???????????????????????????????????????????? | | ???????########????????????????????????????? | | ???????# #????????????????????????????? | | ???????# ###?###########??????????????? | | ???????# ## ######?????????? | | ???????# ## "" ## #?????????? | | ???????# ## "" "" + #?????????? | | ???????# ## "T "" ## #?????????? | | ???????# ## "" """ ## #?????????? | | ???????# ## "" """ ## ########### | | ???????# ## """ # | | ???????# ## # | | ?####### ## # | | ? # ## # | | # """ # ! ## # | | # """ # ## # #### | | # """ #+##+#####+#######+### ## " | | # # g @ # | | # # g # | | # !] + # | | # !! # """ | | # ] # """ # # | | # #####+## """ ########"# | | # # # ! ] u # # # | | # # # ! ] # | | # # # ]] # # | | # # + + """" % ## | | ######## # !! # """" % ## | | ???????# # ! #?"""" # [ # | | ???????# ####+#########?"""" =%%% ## | | ???????# #?? ????????"""" =* #? | | ???????# #?? ???????"""" # #? | | ???????# #?? ?????"""" # #? | | ???????# #?? ???? [# +? | | ???????# #?? !?? # #? | | ???????# #?? #########?# #? | | ???????########??############?????### ## | | ??????????????????# #?????# | | ??????????????????# ####### | | ??????????????????# | | ??????????????????# | | ??????????????????# " | +----------------------------------------------------+ Best States ------------- Heat Dissipation 34 Energy Generation 14 Energy Capacity 265 Matter Stores 300 Matter Capacity 300 Sight Range 16 Robot Scan Range 20 Terrain Scan Density 10 Armor Coverage 150 Propulsion Shielding 33 Utility Shielding 33 Evasion (%) 57 Recoil Reduction 3 Item Schematics ----------------- None Robot Schematics ------------------ None Fabricated ------------ Nothing Repaired ---------- Nothing Studied --------- Aluminum Leg | -8/Materials | Hacked Alien Tech Used ----------------- None Achievements -------------- None Challenges ------------ None Game ------ Seed ImprovedTerrainSuit Manual? 0 Play Time 00:21:05 Cumulative 89.1 hours Start 2025.11.19 @ 15:59:45 End 2025.11.19 @ 16:43:17 Sessions 3 Manual Loads 0 Difficulty Rogue Special Mode None Game No. 122 Rogue 122 Adventurer 0 Explorer 0 Win Type - Total 1 Types 1/0/0/0/0/0/0/0/0/0 Lore% 54 Gallery% 52 Achievement% 39 Wizard Run 0 Options --------- Layout 2 ASCII 0 Keyboard 0 Movement Vi Keybinds 0 Fullscreen 1 Font 16/SmallcapsGlow Map View 50x44 Zoom Use 0% Tactical HUD 1 Map Filters NONE Filters NONE Steam SD RUN: 786d32a7-2990-46a7-896f-f523ae714aab